fUST/lending_fUST_20250827
["ID","MTS","AMOUNT","RATE_DAILY","PERIOD"]
[381494901,1756234241900,-1000.0,0.00036848,5]
[381494903,1756234241910,-1006.64297383,0.00036929,5]
[381494905,1756234241919,-175.419041,0.00036956,20]
[381494907,1756234241929,-150.0,0.00036967,5]
[381494909,1756234241939,-5900.25,0.00037,14]
[381494911,1756234241948,-2500.0,0.00037064,2]
[381494913,1756234241958,-500.0,0.00037073,5]
[381494915,1756234241967,-500.0,0.00037073,5]
[381494917,1756234241977,-500.0,0.00037073,5]
[381494919,1756234241986,-496.81936013,0.00037073,5]
[381494921,1756234241995,-500.0,0.00037073,5]
[381494923,1756234242006,-9411.96869954,0.00037086,3]
[381494924,1756234242016,-792.14363601,0.00037096,5]
[381494926,1756234242026,-31595.11,0.000371,14]
[381494928,1756234242035,-175.419041,0.00037111,4]
[381494931,1756234242045,-277.94464223,0.00037166,28]
[381494932,1756234242056,-1500.0,0.00037396,5]
[381494935,1756234242066,-1500.0,0.00037396,5]
[381494937,1756234242077,-1500.0,0.00037396,5]
[381494938,1756234242087,-151.0,0.000374,12]
[381494940,1756234242098,-250.0,0.00037515,5]
[381494943,1756234242108,-3000.0,0.00037612,2]
[381494944,1756234242117,-1000.0,0.00037621,5]
[381494947,1756234242127,-1000.0,0.00037621,5]
[381494949,1756234242137,-500.0,0.00037621,5]
[381494951,1756234242146,-500.0,0.00037621,5]
[381494953,1756234242155,-9411.96869954,0.00037766,3]
[381494955,1756234242165,-2136.03,0.000378,7]
[381494957,1756234242175,-2000.0,0.00037944,5]
[381494959,1756234242184,-2000.0,0.00037944,5]
[381494961,1756234242193,-200.0,0.00038,30]
[381494963,1756234242203,-350.0,0.00038063,5]
[381494965,1756234242212,-2784.86288847,0.0003816,2]
[381494966,1756234242222,-475.19182676,0.00038167,2]
[381494968,1756234242231,-1009.72641863,0.00038168,5]
[381494970,1756234242241,-870.8673848,0.00038168,5]
[381494973,1756234242251,-974.0,0.00038333,2]
[381494975,1756234242261,-2156.0,0.00038333,2]
[381494976,1756234242271,-638.0,0.00038333,2]
[381494979,1756234242281,-500.0,0.00038356,120]
[381494981,1756234242291,-1134.85,0.000384,7]
[381494983,1756234242300,-5900.25,0.000384,14]
[381494985,1756234242310,-187.09935736,0.00038422,14]
[381494987,1756234242321,-2500.0,0.00038492,5]
[381494989,1756234242331,-2500.0,0.00038492,5]
[381494990,1756234242341,-151.0,0.000386,20]
[381494992,1756234242350,-450.0,0.00038611,5]
[381494994,1756234242360,-311.94719537,0.000387,120]
[381494996,1756234242369,-800.0,0.00038783,7]
[381494998,1756234242380,-9411.96869954,0.0003879,3]
[381495000,1756234242390,-31595.11,0.000388,14]
[381495002,1756234242399,-277.94464223,0.00038892,32]
[381495004,1756234242410,-500.0,0.00038903,7]
[381495006,1756234242419,-500.0,0.00038904,120]
[381495008,1756234242429,-160.0,0.00039,3]
[381495010,1756234242439,-3046.08317985,0.0003904,5]
[381495012,1756234242448,-3000.0,0.0003904,5]
[381495014,1756234242458,-532.66998372,0.00039158,5]
[381495016,1756234242467,-800.0,0.00039237,7]
[381495018,1756234242477,-1152.0,0.00039352,5]
[381495020,1756234242487,-160.0,0.00039392,4]
[381495022,1756234242497,-9852.61643654,0.000394,120]
[381495024,1756234242507,-375.73491423,0.00039424,7]
[381495026,1756234242517,-175.419041,0.00039437,20]
[381495028,1756234242526,-500.0,0.00039452,120]
[381495030,1756234242536,-175.419041,0.00039555,4]
[381495032,1756234242546,-3246.73612045,0.00039588,5]
[381495034,1756234242556,-2136.03,0.000396,7]
[381495036,1756234242565,-252.661012,0.00039654,2]
[381495038,1756234242577,-151.0,0.000398,19]
[381495040,1756234242587,-151.0,0.000398,15]
[381495042,1756234242596,-500.0,0.0004,2]
[381495044,1756234242606,-801.11854901,0.0004,30]
[381495046,1756234242615,-361.42610418,0.0004,120]
[381495048,1756234242624,-500.0,0.0004,120]
[381495050,1756234242634,-160.0,0.0004,120]
[381495052,1756234242643,-500.0,0.0004009,30]
[381495054,1756234242652,-1134.85,0.000402,7]
[381495056,1756234242662,-500.0,0.0004022,30]
[381495057,1756234242672,-869.81034234,0.0004024,2]
[381495059,1756234242681,-9104.06225704,0.00040274,10]
[381495061,1756234242691,-501.84261226,0.00040328,15]
[381495063,1756234242700,-9411.96869954,0.00040509,3]
[381495065,1756234242710,-173.45921025,0.00040519,8]
[381495067,1756234242723,-500.0,0.00040547,7]
[381495069,1756234242732,-500.0,0.00040547,120]
[381495071,1756234242742,-800.0,0.00040557,30]
[381495073,1756234242754,-31595.11,0.000406,14]
[381495075,1756234242764,-277.94464223,0.00040619,36]
[381495077,1756234242774,-500.0,0.00040619,30]
[381495079,1756234242785,-800.0,0.00040626,30]
[381495080,1756234242795,-887.0409211,0.00040681,2]
[381495082,1756234242805,-150.0,0.00040736,2]
[381495085,1756234242815,-800.0,0.00040756,7]
[381495087,1756234242826,-151.0,0.000408,19]
[381495089,1756234242836,-150.0,0.00040862,2]
[381495091,1756234242846,-2214.688,0.00040896,14]
[381495093,1756234242857,-175.419041,0.000409,60]
[381495096,1756234242867,-500.0,0.0004091,30]
[381495098,1756234242878,-500.0,0.0004091,30]
[381495100,1756234242888,-268.23,0.00040988,2]
[381495103,1756234242898,-9411.96869954,0.0004099,3]
[381495105,1756234242908,-199.0,0.00040995,90]
[381495107,1756234242918,-199.0,0.00040995,120]
[381495109,1756234242928,-475.19182676,0.00040995,2]
[381495111,1756234242938,-1000.0,0.00040995,2]
[381495113,1756234242948,-39843.62780004,0.00041,2]
[381495115,1756234242957,-417.15472785,0.00041,10]
[381495117,1756234242967,-417.15472785,0.00041,30]
[381495120,1756234242976,-293.85068442,0.00041,30]
[381495123,1756234242986,-160.0,0.00041,10]
[381495126,1756234242996,-160.0,0.00041,30]
[381495129,1756234243005,-204.211716,0.00041,2]
[381495131,1756234243015,-529.4218694,0.00041,10]
[381495134,1756234243025,-529.4218694,0.00041,30]
[381495137,1756234243035,-150.0,0.00041073,5]
[381495140,1756234243045,-18823.9373991,0.00041085,3]
[381495143,1756234243055,-2735.83989815,0.00041095,61]
[381495146,1756234243065,-480.0,0.00041095,120]
[381495149,1756234243075,-480.0,0.00041095,120]
[381495153,1756234243085,-480.0,0.00041095,120]
[381495156,1756234243095,-480.0,0.00041095,120]
[381495159,1756234243104,-480.0,0.00041095,30]
[381495162,1756234243114,-480.88238758,0.00041095,120]
[381495165,1756234243124,-480.0,0.00041095,120]
[381495167,1756234243135,-481.23645143,0.00041095,120]
[381495170,1756234243145,-480.0,0.00041095,120]
[381495173,1756234243154,-481.49450717,0.00041095,120]
[381495175,1756234243164,-481.35008951,0.00041095,120]
[381495177,1756234243174,-480.0,0.00041095,120]
[381495179,1756234243184,-12.12158961,0.00041095,120]
[381495236,1756234243698,-467.87841039,0.00041095,120]
[381495238,1756234243707,-480.0,0.00041095,120]
[381495241,1756234243721,-480.0,0.00041095,120]
[381495242,1756234243730,-480.65673343,0.00041095,120]
[381495244,1756234243740,-480.0,0.00041095,120]
[381495246,1756234243749,-480.0,0.00041095,120]
[381495248,1756234243759,-480.0,0.00041095,120]
[381495250,1756234243770,-480.0,0.00041095,120]
[381495252,1756234243779,-480.0,0.00041095,120]
[381495254,1756234243789,-480.0,0.00041095,120]
[381495256,1756234243799,-480.0,0.00041095,120]
[381495258,1756234243809,-480.0,0.00041095,120]
[381495260,1756234243818,-480.0,0.00041095,120]
[381495262,1756234243828,-480.0,0.00041095,120]
[381495264,1756234243838,-480.0,0.00041095,120]
[381495266,1756234243847,-480.0,0.00041095,120]
[381495268,1756234243857,-482.25,0.00041095,120]
[381495270,1756234243867,-480.0,0.00041095,120]
[381495272,1756234243877,-388.89,0.00041095,120]
[381495274,1756234243886,-480.0,0.00041095,120]
[381495276,1756234243896,-646.76,0.00041095,120]
[381495278,1756234243906,-480.0,0.00041095,120]
[381495280,1756234243915,-615.02,0.00041095,120]
[381495282,1756234243925,-415.1326586,0.00041095,120]
[381495284,1756234243934,-481.59468991,0.00041095,120]
[381495286,1756234243944,-480.0,0.00041095,120]
[381495288,1756234243955,-480.0,0.00041095,120]
[381495290,1756234243964,-480.85295909,0.00041095,120]
[381495292,1756234243974,-480.0,0.00041095,120]
[381495294,1756234243984,-480.0,0.00041095,120]
[381495296,1756234243993,-480.0,0.00041095,120]
[381495298,1756234244003,-480.0,0.00041095,120]
[381495299,1756234244013,-481.49404555,0.00041095,120]
[381495301,1756234244023,-480.0,0.00041095,120]
[381495303,1756234244033,-480.0,0.00041095,120]
[381495305,1756234244042,-480.0,0.00041095,120]
[381495307,1756234244052,-480.0,0.00041095,120]
[381495309,1756234244062,-480.0,0.00041095,120]
[381495311,1756234244071,-480.0,0.00041095,120]
[381495313,1756234244080,-318.71552325,0.00041095,120]
[381495315,1756234244089,-480.0,0.00041095,120]
[381495317,1756234244099,-480.0,0.00041095,120]
[381495319,1756234244108,-480.0,0.00041095,120]
[381495320,1756234244117,-480.0,0.00041095,120]
[381495322,1756234244127,-480.0,0.00041095,120]
[381495324,1756234244136,-480.0,0.00041095,120]
[381495326,1756234244146,-480.0,0.00041095,120]
[381495328,1756234244156,-480.0,0.00041095,120]
[381495329,1756234244165,-480.0,0.00041095,120]
[381495331,1756234244176,-480.87720943,0.00041095,120]
[381495333,1756234244185,-480.0,0.00041095,120]
[381495336,1756234244195,-480.7624987,0.00041095,120]
[381495339,1756234244203,-480.0,0.00041095,120]
[381495341,1756234244213,-151.0,0.00041095,30]
[381495344,1756234244222,-480.0,0.00041095,120]
[381495348,1756234244232,-480.0,0.00041095,120]
[381495352,1756234244242,-282.1677636,0.00041095,120]
[381495355,1756234244251,-480.0,0.00041095,120]
[381495358,1756234244261,-480.0,0.00041095,120]
[381495361,1756234244271,-480.0,0.00041095,120]
[381495364,1756234244283,-451.25216135,0.00041095,120]
[381495366,1756234244292,-480.0,0.00041095,120]
[381495369,1756234244302,-489.03,0.00041095,120]
[381495372,1756234244312,-480.0,0.00041095,120]
[381495374,1756234244322,-480.0,0.00041095,120]
[381495376,1756234244331,-480.0,0.00041095,120]
[381495378,1756234244340,-480.0,0.00041095,120]
[381495380,1756234244350,-480.0,0.00041095,120]
[381495382,1756234244362,-480.0,0.00041095,120]
[381495384,1756234244371,-480.0,0.00041095,120]
[381495386,1756234244380,-480.0,0.00041095,120]
[381495388,1756234244390,-480.0,0.00041095,120]
[381495389,1756234244399,-480.0,0.00041095,120]
[381495391,1756234244408,-480.0,0.00041095,120]
[381495393,1756234244417,-480.0,0.00041095,120]
[381495395,1756234244427,-480.0,0.00041095,120]
[381495397,1756234244436,-480.0,0.00041095,120]
[381495399,1756234244445,-480.0,0.00041095,120]
[381495401,1756234244455,-480.0,0.00041095,120]
[381495403,1756234244464,-480.0,0.00041095,120]
[381495405,1756234244473,-480.0,0.00041095,120]
[381495407,1756234244482,-680.33,0.00041095,120]
[381495409,1756234244492,-480.0,0.00041095,120]
[381495411,1756234244501,-480.0,0.00041095,120]
[381495413,1756234244512,-480.0,0.00041095,120]
[381495415,1756234244521,-480.0,0.00041095,120]
[381495417,1756234244531,-480.0,0.00041095,120]
[381495419,1756234244540,-480.0,0.00041095,120]
[381495421,1756234244549,-480.0,0.00041095,120]
[381495423,1756234244558,-480.0,0.00041095,30]
[381495425,1756234244568,-482.31842462,0.00041095,120]
[381495427,1756234244578,-480.0,0.00041095,120]
[381495428,1756234244588,-480.0,0.00041095,120]
[381495430,1756234244597,-480.0,0.00041095,120]
[381495432,1756234244606,-1491.13,0.00041095,120]
[381495434,1756234244617,-1199.73,0.00041095,120]
[381495436,1756234244626,-480.0,0.00041095,120]
[381495438,1756234244636,-480.0,0.00041095,120]
[381495440,1756234244645,-480.0,0.00041095,120]
[381495442,1756234244654,-588.96,0.00041095,120]
[381495444,1756234244664,-480.0,0.00041095,120]
[381495446,1756234244673,-480.0,0.00041095,120]
[381495448,1756234244682,-480.35460623,0.00041095,120]
[381495450,1756234244691,-485.74957295,0.00041095,120]
[381495452,1756234244701,-480.0,0.00041095,120]
[381495454,1756234244711,-480.0,0.00041095,120]
[381495456,1756234244724,-480.0,0.00041095,120]
[381495458,1756234244733,-480.0,0.00041095,120]
[381495460,1756234244742,-552.46067077,0.00041095,120]
[381495462,1756234244751,-556.6,0.00041095,120]
[381495464,1756234244762,-480.0,0.00041095,120]
[381495466,1756234244771,-480.0,0.00041095,120]
[381495468,1756234244780,-480.0,0.00041095,120]
[381495470,1756234244791,-480.0,0.00041095,90]
[381495472,1756234244799,-275.06794982,0.00041095,120]
[381495477,1756234244843,-204.93205018,0.00041095,120]
[381495479,1756234244852,-480.0,0.00041095,120]
[381495481,1756234244861,-480.0,0.00041095,120]
[381495483,1756234244870,-480.0,0.00041095,120]
[381495485,1756234244879,-480.0,0.00041095,120]
[381495487,1756234244891,-481.15382597,0.00041095,120]
[381495489,1756234244900,-480.0,0.00041095,120]
[381495491,1756234244909,-480.0,0.00041095,120]
[381495493,1756234244918,-480.0,0.00041095,120]
[381495495,1756234244928,-480.0,0.00041095,120]
[381495497,1756234244937,-480.0,0.00041095,120]
[381495499,1756234244947,-480.0,0.00041095,120]
[381495501,1756234244956,-480.0,0.00041095,120]
[381495503,1756234244966,-480.0,0.00041095,120]
[381495505,1756234244975,-480.0,0.00041095,120]
[381495507,1756234244985,-480.0,0.00041095,120]
[381495509,1756234244995,-480.0,0.00041095,120]
[381495511,1756234245004,-480.0,0.00041095,120]
[381495512,1756234245013,-528.69,0.00041095,120]
[381495514,1756234245022,-480.0,0.00041095,120]
[381495516,1756234245032,-527.376968,0.00041095,120]
[381495519,1756234245044,-606.683032,0.00041095,120]
[381495521,1756234245053,-522.81,0.00041095,120]
[381495522,1756234245063,-480.0,0.00041095,120]
[381495524,1756234245073,-151.0,0.00041095,60]
[381495526,1756234245083,-151.0,0.00041095,60]
[381495528,1756234245092,-480.0,0.00041095,120]
[381495530,1756234245101,-151.0,0.00041095,30]
[381495532,1756234245111,-480.0,0.00041095,120]
[381495534,1756234245120,-515.87632026,0.00041095,120]
[381495536,1756234245132,-480.0,0.00041095,120]
[381495538,1756234245141,-480.0,0.00041095,120]
[381495540,1756234245151,-480.0,0.00041095,120]
[381495542,1756234245160,-480.0,0.00041095,120]
[381495544,1756234245170,-538.96,0.00041095,120]
[381495546,1756234245179,-480.0,0.00041095,120]
[381495548,1756234245188,-459.54007553,0.00041095,120]
[381495550,1756234245197,-480.0,0.00041095,120]
[381495551,1756234245206,-480.0,0.00041095,120]
[381495552,1756234245215,-480.0,0.00041095,120]
[381495553,1756234245225,-480.0,0.00041095,120]
[381495554,1756234245234,-802.24,0.00041095,120]
[381495555,1756234245243,-480.71378235,0.00041095,120]
[381495556,1756234245252,-480.0,0.00041095,2]
[381495557,1756234245261,-480.0,0.00041095,120]
[381495558,1756234245271,-480.0,0.00041095,120]
[381495559,1756234245280,-480.0,0.00041095,120]
[381495560,1756234245289,-480.0,0.00041095,120]
[381495561,1756234245300,-480.0,0.00041095,120]
[381495562,1756234245309,-481.04744266,0.00041095,120]
[381495563,1756234245318,-5120.04,0.00041095,120]
[381495564,1756234245328,-554.03,0.00041095,120]
[381495565,1756234245338,-480.0,0.00041095,2]
[381495566,1756234245347,-480.0,0.00041095,120]
[381495567,1756234245356,-480.0,0.00041095,120]
[381495568,1756234245365,-1609.02,0.00041095,120]
[381495569,1756234245374,-480.0,0.00041095,120]
[381495570,1756234245382,-480.0,0.00041095,120]
[381495571,1756234245392,-480.0,0.00041095,120]
[381495572,1756234245401,-480.41850073,0.00041095,120]
[381495573,1756234245411,-480.0,0.00041095,120]
[381495574,1756234245420,-480.0,0.00041095,120]
[381495575,1756234245430,-970.93,0.00041095,120]
[381495576,1756234245439,-480.77527775,0.00041095,120]
[381495577,1756234245448,-480.0,0.00041095,120]
[381495578,1756234245459,-480.58333938,0.00041095,120]
[381495579,1756234245469,-480.0,0.00041095,120]
[381495580,1756234245479,-480.0,0.00041095,120]
[381495581,1756234245488,-480.0,0.00041095,120]
[381495582,1756234245497,-480.0,0.00041095,120]
[381495583,1756234245506,-484.97,0.00041095,120]
[381495584,1756234245515,-480.0,0.00041095,120]
[381495585,1756234245525,-480.0,0.00041095,120]
[381495586,1756234245534,-480.0,0.00041095,120]
[381495587,1756234245543,-480.0,0.00041095,120]
[381495588,1756234245553,-480.0,0.00041095,120]
[381495589,1756234245562,-480.0,0.00041095,120]
[381495590,1756234245571,-480.0,0.00041095,120]
[381495592,1756234245580,-480.0,0.00041095,120]
[381495593,1756234245590,-480.0,0.00041095,120]
[381495595,1756234245601,-480.0,0.00041095,30]
[381495597,1756234245611,-1137.41,0.00041095,120]
[381495599,1756234245621,-480.0,0.00041095,120]
[381495601,1756234245631,-172.38009611,0.00041095,120]
[381495686,1756234246442,-109.73921353,0.00041095,120]
[381495760,1756234247140,-199.0,0.00029489,120]
[381495762,1756234247149,-409.0,0.00035333,2]
[381495764,1756234247159,-409.0,0.00038333,2]
[381495766,1756234247168,-199.39069036,0.00041095,120]
[381495768,1756234247177,-757.17,0.00041095,120]
[381495790,1756234247374,-480.0,0.00041095,120]
[381495792,1756234247386,-480.0,0.00041095,120]
[381495794,1756234247396,-578.73,0.00041095,120]
[381495796,1756234247405,-480.0,0.00041095,120]
[381495798,1756234247415,-480.0,0.00041095,120]
[381495800,1756234247424,-480.0,0.00041095,120]
[381495802,1756234247433,-47.70930964,0.00041095,120]
[381495858,1756234248107,-432.29069036,0.00041095,120]
[381495860,1756234248117,-480.0,0.00041095,120]
[381495862,1756234248126,-480.0,0.00041095,120]
[381495864,1756234248136,-480.0,0.00041095,120]
[381495866,1756234248147,-480.0,0.00041095,120]
[381495868,1756234248157,-64.09901599,0.00041095,120]
[381495901,1756234248462,800.0,0.00026528,2]
[381495904,1756234248487,786.0384619,0.0002643,2]
[381495908,1756234248507,13.9615381,0.0002643,2]
[381497743,1756234292062,375.25015108,0.000199,2]
[381497744,1756234292353,375.25015108,0.00023476,2]
[381497745,1756234292710,375.25015108,0.00027053,6]
[381497746,1756234458062,329.3799888,0.000199,2]
[381497747,1756234458164,329.37998859,0.00021627,2]
[381497748,1756234458314,329.37998859,0.00023353,2]
[381497749,1756234458436,329.37998859,0.0002508,2]
[381497750,1756234458623,329.37998859,0.00026806,6]
[381497751,1756234500295,350.11847148,0.000271,7]
[381497752,1756234501492,-178.94,0.00027878,7]
[381497753,1756234524719,182.9,0.00026806,7]
[381497754,1756234637990,274.48332397,0.000199,2]
[381497755,1756234638025,274.48332382,0.00021627,2]
[381497756,1756234638079,274.48332382,0.00023353,2]
[381497757,1756234638113,274.48332382,0.0002508,2]
[381497758,1756234638147,274.48332382,0.00026806,6]
[381497761,1756234682480,-200.7381221,0.00027803,2]
[381497762,1756234685694,-237.8996096,0.00027803,2]
[381497763,1756234731699,-165.71,0.00027284,2]
[381497764,1756234734448,-35.0281221,0.00027284,2]
[381497765,1756234734470,-272.93693676,0.00027677,2]
[381497766,1756234736079,-461.03941405,0.00027677,2]
[381497767,1756234744518,-246.0,0.00027677,2]
[381497768,1756234746744,-59.27811169,0.00027677,2]
[381497769,1756234819589,244.52527187,0.000199,2]
[381497770,1756234819695,244.52527181,0.00021627,2]
[381497771,1756234819814,244.52527181,0.00023353,2]
[381497772,1756234819939,244.52527181,0.0002508,2]
[381497773,1756234820045,244.52527181,0.00026806,6]
[381497774,1756234968484,-152.0,0.00027344,2]
[381497775,1756234971590,-182.4602205,0.00027344,2]
[381497776,1756234973672,-168.71882018,0.00027344,2]
[381497777,1756234975859,-199.0,0.00027344,2]
[381497778,1756234980088,-191.39216702,0.00027344,2]
[381497779,1756234996148,574.96648597,0.000199,2]
[381497780,1756234996190,574.9664859,0.00021627,2]
[381497781,1756234996291,574.9664859,0.00023353,2]
[381497782,1756234996404,574.9664859,0.0002508,2]
[381497783,1756234996505,574.9664859,0.00026806,6]
[381497784,1756235084514,-167.07601088,0.00027284,2]
[381497786,1756235099509,202.12881,0.00013699,2]
[381497787,1756235100101,202.12881,0.00020187,2]
[381497788,1756235100378,202.12881,0.00026676,2]
[381497789,1756235133142,-13.63835312,0.00027284,2]
[381497790,1756235133164,-180.714364,0.00027393,2]
[381497791,1756235133187,-180.714364,0.00027502,2]
[381497792,1756235133208,-204.29122672,0.00028262,2]
[381497793,1756235133230,-300.0,0.0002829,2]
[381497794,1756235133252,-1200.0,0.0002829,2]
[381497795,1756235133277,-345.32605215,0.00028291,2]
[381497796,1756235133301,-390.34529021,0.00028291,2]
[381497797,1756235172060,559.68078032,0.000199,2]
[381497798,1756235172102,559.68078013,0.00021627,2]
[381497799,1756235172161,559.68078013,0.00023353,2]
[381497800,1756235172205,559.68078013,0.0002508,2]
[381497801,1756235172245,559.68078013,0.00026806,6]
[381497802,1756235206088,-184.08337164,0.00028192,2]
[381497803,1756235206109,-614.47479489,0.00028291,2]
[381497804,1756235235093,-300.0,0.00028291,2]
[381497805,1756235235115,-675.0,0.00028291,2]
[381497806,1756235235136,-7536.79723284,0.00028292,2]
[381497808,1756235352915,551.46136014,0.000199,2]
[381497809,1756235353033,551.46135999,0.00021627,2]
[381497810,1756235353176,551.46135999,0.00023353,2]
[381497811,1756235353295,551.46135999,0.0002508,2]
[381497812,1756235353423,551.46135999,0.00026806,6]
[381497813,1756235359113,-300.0,0.00028291,2]
[381497814,1756235359133,-20500.44770596,0.00028292,2]
[381497839,1756235432671,-551.46135999,0.00028533,10]
[381497841,1756235432682,-566.0297644,0.00028625,2]
[381497844,1756235432691,-151.48,0.00029276,15]
[381497847,1756235432700,-160.0,0.0002951,2]
[381497850,1756235432710,-175.0,0.00029522,2]
[381497853,1756235432719,-300.0,0.00029523,2]
[381497856,1756235432729,-300.0,0.00029523,2]
[381497858,1756235432738,-9164.6569046,0.00029524,2]
[381497893,1756235438496,-3539.78107466,0.00029524,2]
[381497895,1756235438506,-8192.0210759,0.0002959,2]
[381497897,1756235438515,-1010.61139526,0.000296,2]
[381497899,1756235438524,-664.7,0.00029649,10]
[381497901,1756235438533,-459.9317176,0.00029652,2]
[381497903,1756235438543,-500.0,0.00029659,2]
[381497906,1756235438553,-500.0,0.00029659,2]
[381497909,1756235438562,-500.0,0.00029659,2]
[381497911,1756235438571,-270.56180319,0.00029659,2]
[381497913,1756235438581,-500.0,0.00029659,2]
[381497915,1756235438590,-500.0,0.00029659,2]
[381497917,1756235438600,-500.0,0.00029659,2]
[381497919,1756235438609,-500.0,0.00029659,2]
[381497921,1756235438619,-500.0,0.00029659,2]
[381497923,1756235438628,-500.0,0.00029659,2]
[381497925,1756235438637,-500.0,0.00029659,2]
[381497927,1756235438646,-295.59059685,0.00029659,2]
[381497929,1756235438656,-500.0,0.00029659,2]
[381497931,1756235438667,-500.0,0.00029659,2]
[381497933,1756235438677,-500.0,0.00029659,2]
[381497935,1756235438688,-500.0,0.00029659,2]
[381497937,1756235438698,-500.0,0.00029659,2]
[381497939,1756235438708,-500.0,0.00029659,2]
[381497941,1756235438717,-500.0,0.00029659,2]
[381497943,1756235438728,-500.0,0.00029659,2]
[381497945,1756235438739,-500.0,0.00029659,2]
[381497947,1756235438750,-500.0,0.00029659,2]
[381497949,1756235438760,-500.0,0.00029659,2]
[381497951,1756235438770,-500.0,0.00029659,2]
[381497953,1756235438780,-31835.67443555,0.0002966,2]
[381498043,1756235440669,-945.75524809,0.0002966,2]
[381498044,1756235440804,-3929.30516732,0.0002966,2]
[381498243,1756235443791,-88.72868517,0.0002966,2]
[381498246,1756235443807,-23674.27486447,0.0002966,2]
[381498248,1756235443817,-553.91,0.0002966,10]
[381498250,1756235443828,-461.59,0.0002966,10]
[381498252,1756235443838,-160.0,0.00029668,2]
[381498254,1756235443848,-136913.67882519,0.0002967,2]
[381498572,1756235535158,521.31783458,0.000199,2]
[381498573,1756235535234,521.31783429,0.00021627,2]
[381498574,1756235535346,521.31783429,0.00023353,2]
[381498575,1756235535459,521.31783429,0.0002508,2]
[381498576,1756235535583,330.74291956,0.00026806,6]
[381498577,1756235535604,190.57491473,0.00026806,6]
[381498579,1756235717181,457.11143054,0.000199,2]
[381498580,1756235717299,135.21435921,0.00021627,2]
[381498581,1756235717324,321.89707127,0.00021627,2]
[381498582,1756235717449,457.11143048,0.00023353,2]
[381498583,1756235717611,457.11143048,0.0002508,2]
[381498584,1756235717663,457.11143048,0.00026806,6]
[381498585,1756235823991,260582.040541,0.00031995,60]
[381498586,1756235907971,382.45840089,0.000199,2]
[381498587,1756235908081,382.45840078,0.00021627,2]
[381498588,1756235908211,382.45840078,0.00023353,2]
[381498589,1756235908420,382.45840078,0.0002508,2]
[381498590,1756235908533,382.45840078,0.00026806,6]
[381498591,1756236081498,-152.0,0.00027312,2]
[381498592,1756236082714,272.906513,0.00013699,2]
[381498593,1756236082922,272.906513,0.00020187,2]
[381498594,1756236083296,272.906513,0.00026676,2]
[381498595,1756236084001,-365.1951934,0.00027312,2]
[381498596,1756236087743,316.55442555,0.000199,2]
[381498597,1756236087878,316.55442555,0.00021627,2]
[381498598,1756236088014,316.55442555,0.00023353,2]
[381498599,1756236088127,316.55442555,0.0002508,2]
[381498600,1756236088247,316.55442555,0.00026806,6]
[381498601,1756236088911,-148.8048066,0.00027312,2]
[381498603,1756236125516,-264.52143403,0.00027312,2]
[381498604,1756236126613,-7498.61641587,0.00027312,2]
[381498605,1756236126697,-10000.01,0.00027312,2]
[381498606,1756236127141,-167.58387999,0.00027312,2]
[381498607,1756236127300,-10000.01,0.00027312,2]